[Event "Late-Titled-Tuesday-Blitz-September-12-2023"]
[Site "Chess.com"]
[Date "2023.09.12"]
[Round "3"]
[White "IMRosen"]
[Black "ljuks68"]
[Result "1-0"]
[WhiteElo "2620"]
[BlackElo "2442"]
[TimeControl "180+1"]
[EndTime "14:27:23 PDT"]
[Termination "IMRosen won on time"]

1. Nf3 {[%clk 0:03:00.9]} 1... d5 {[%clk 0:02:59.9]} 2. e3 {[%clk 0:03:01]} 2...
Nf6 {[%clk 0:02:58.9]} 3. c4 {[%clk 0:03:00.5]} 3... c6 {[%clk 0:02:58.9]} 4.
Nc3 {[%clk 0:03:00.4]} 4... e6 {[%clk 0:02:57.5]} 5. b3 {[%clk 0:03:00.4]} 5...
Nbd7 {[%clk 0:02:57.2]} 6. Bb2 {[%clk 0:03:00.9]} 6... Bd6 {[%clk 0:02:57.4]} 7.
Qc2 {[%clk 0:03:01.6]} 7... a6 {[%clk 0:02:55.8]} 8. d4 {[%clk 0:02:57.8]} 8...
b5 {[%clk 0:02:52.5]} 9. Bd3 {[%clk 0:02:52.5]} 9... O-O {[%clk 0:02:49.7]} 10.
O-O {[%clk 0:02:51.6]} 10... Re8 {[%clk 0:02:44.2]} 11. Rfd1 {[%clk 0:02:47.9]}
11... Bb7 {[%clk 0:02:43.8]} 12. Rac1 {[%clk 0:02:47.5]} 12... Rc8 {[%clk
0:02:38.1]} 13. Qb1 {[%clk 0:02:47.7]} 13... Ba8 {[%clk 0:02:31.8]} 14. Ne2
{[%clk 0:02:35]} 14... Qe7 {[%clk 0:02:13.9]} 15. c5 {[%clk 0:02:11.7]} 15...
Bc7 {[%clk 0:02:11.8]} 16. Ne5 {[%clk 0:02:09.3]} 16... Nxe5 {[%clk 0:02:09.8]}
17. dxe5 {[%clk 0:02:09.1]} 17... Nd7 {[%clk 0:02:10.4]} 18. Bxh7+ {[%clk
0:02:05.2]} 18... Kh8 {[%clk 0:02:08.4]} 19. Bc2 {[%clk 0:01:24.6]} 19... Bxe5
{[%clk 0:02:01.1]} 20. b4 {[%clk 0:01:19.5]} 20... a5 {[%clk 0:01:54.5]} 21. a3
{[%clk 0:01:19]} 21... Bb7 {[%clk 0:01:52.6]} 22. Ng3 {[%clk 0:01:18.6]} 22...
Ra8 {[%clk 0:01:47.5]} 23. e4 {[%clk 0:01:13.4]} 23... Qf6 {[%clk 0:01:41]} 24.
Bxe5 {[%clk 0:01:01]} 24... Nxe5 {[%clk 0:01:40.5]} 25. Qb3 {[%clk 0:00:56.8]}
25... axb4 {[%clk 0:01:10.7]} 26. axb4 {[%clk 0:00:56.9]} 26... Nc4 {[%clk
0:01:10.9]} 27. Nh5 {[%clk 0:00:43.6]} 27... Qh6 {[%clk 0:00:44.8]} 28. Qf3
{[%clk 0:00:43.3]} 28... Ne5 {[%clk 0:00:34.3]} 29. Qe2 {[%clk 0:00:41.6]} 29...
d4 {[%clk 0:00:28.4]} 30. f4 {[%clk 0:00:36.3]} 30... Nc4 {[%clk 0:00:10.2]} 31.
Rxd4 {[%clk 0:00:36.6]} 31... Ra2 {[%clk 0:00:09.5]} 32. Qf3 {[%clk 0:00:32.8]}
32... e5 {[%clk 0:00:07.5]} 33. Rd7 {[%clk 0:00:30.4]} 33... Bc8 {[%clk
0:00:04.2]} 34. Rxf7 {[%clk 0:00:30.3]} 34... exf4 {[%clk 0:00:04.5]} 35. Rxg7
{[%clk 0:00:24.8]} 35... Ne5 {[%clk 0:00:03.8]} 36. Qd1 {[%clk 0:00:13.2]} 36...
Bg4 {[%clk 0:00:03.5]} 37. Qd6 {[%clk 0:00:06.3]} 37... Qxd6 {[%clk 0:00:02.5]}
38. cxd6 {[%clk 0:00:04.7]} 38... Bxh5 {[%clk 0:00:02.9]} 39. Bb3 {[%clk
0:00:02.5]} 39... Kxg7 {[%clk 0:00:02.5]} 40. Bxa2 {[%clk 0:00:02.1]} 40... f3
{[%clk 0:00:02.2]} 41. gxf3 {[%clk 0:00:01.8]} 41... Bxf3 {[%clk 0:00:01.4]} 42.
Re1 {[%clk 0:00:02.3]} 42... Kf6 {[%clk 0:00:01.3]} 43. Kf2 {[%clk 0:00:02.5]}
43... Rf8 {[%clk 0:00:01.2]} 44. Ke3 {[%clk 0:00:02.7]} 1-0

[Event "Late-Titled-Tuesday-Blitz-September-12-2023"]
[Site "Chess.com"]
[Date "2023.09.12"]
[Round "3"]
[White "S-Fazulyanov"]
[Black "AlexOstrovskiy"]
[Result "0-1"]
[WhiteElo "2454"]
[BlackElo "2660"]
[TimeControl "180+1"]
[EndTime "14:27:28 PDT"]
[Termination "AlexOstrovskiy won by resignation"]

1. e4 {[%clk 0:02:54.6]} 1... d5 {[%clk 0:02:58.6]} 2. exd5 {[%clk 0:02:54.4]}
2... Nf6 {[%clk 0:02:59.2]} 3. d4 {[%clk 0:02:54.8]} 3... Bg4 {[%clk 0:02:59.3]}
4. Nf3 {[%clk 0:02:50.6]} 4... Qxd5 {[%clk 0:02:58.3]} 5. Be2 {[%clk 0:02:51.2]}
5... Nc6 {[%clk 0:02:58.4]} 6. h3 {[%clk 0:02:49.5]} 6... Qh5 {[%clk 0:02:50.2]}
7. c4 {[%clk 0:02:26.5]} 7... O-O-O {[%clk 0:02:47.6]} 8. Be3 {[%clk 0:02:24.4]}
8... e5 {[%clk 0:02:37]} 9. d5 {[%clk 0:02:22.9]} 9... e4 {[%clk 0:02:34.6]} 10.
Nd4 {[%clk 0:02:13.7]} 10... Bxe2 {[%clk 0:02:27.6]} 11. Qxe2 {[%clk 0:02:12.3]}
11... Bb4+ {[%clk 0:02:16.2]} 12. Nc3 {[%clk 0:02:08.7]} 12... Bxc3+ {[%clk
0:02:08.4]} 13. bxc3 {[%clk 0:02:08.6]} 13... Qxe2+ {[%clk 0:02:08.1]} 14. Kxe2
{[%clk 0:02:02.8]} 14... Ne5 {[%clk 0:02:09]} 15. Nf5 {[%clk 0:02:03.2]} 15...
Nxc4 {[%clk 0:01:54.1]} 16. Nxg7 {[%clk 0:02:00.5]} 16... Nxd5 {[%clk
0:01:53.9]} 17. Bd4 {[%clk 0:01:58.2]} 17... Nf4+ {[%clk 0:01:44.9]} 18. Kf1
{[%clk 0:01:52.2]} 18... Rhg8 {[%clk 0:01:24.5]} 19. g3 {[%clk 0:01:46.8]} 19...
Nd2+ {[%clk 0:01:21.3]} 20. Ke1 {[%clk 0:01:38.3]} 20... Nf3+ {[%clk 0:01:20.2]}
21. Kf1 {[%clk 0:01:38.5]} 21... Nxd4 {[%clk 0:01:16.3]} 22. gxf4 {[%clk
0:01:24.8]} 22... Rxg7 {[%clk 0:01:14.6]} 23. cxd4 {[%clk 0:01:24.4]} 23... Rxd4
{[%clk 0:01:15.5]} 24. Ke2 {[%clk 0:01:22.2]} 24... c5 {[%clk 0:01:08.5]} 25.
Rhg1 {[%clk 0:01:17.4]} 25... Rg6 {[%clk 0:01:07.3]} 26. h4 {[%clk 0:01:14.4]}
26... Kd7 {[%clk 0:00:56.6]} 27. h5 {[%clk 0:01:13.9]} 27... Rf6 {[%clk
0:00:52.8]} 28. Ke3 {[%clk 0:01:10]} 28... h6 {[%clk 0:00:47.1]} 29. Rg7 {[%clk
0:00:46.3]} 29... b6 {[%clk 0:00:44.4]} 30. Rag1 {[%clk 0:00:42.5]} 30... Ke7
{[%clk 0:00:36.5]} 31. Rh7 {[%clk 0:00:39]} 31... Ra4 {[%clk 0:00:35.1]} 32.
Rgg7 {[%clk 0:00:34.6]} 32... Ra3+ {[%clk 0:00:31.8]} 33. Kxe4 {[%clk
0:00:34.7]} 33... Rxa2 {[%clk 0:00:32.3]} 34. Rg6 {[%clk 0:00:27.7]} 34... Ra4+
{[%clk 0:00:29.3]} 35. Ke3 {[%clk 0:00:27.4]} 35... Raxf4 {[%clk 0:00:26.9]} 36.
Rgxh6 {[%clk 0:00:25.8]} 36... Rf3+ {[%clk 0:00:25.8]} 37. Ke4 {[%clk
0:00:26.1]} 37... Rxf2 {[%clk 0:00:25.7]} 38. Rxf6 {[%clk 0:00:24.6]} 38... Kxf6
{[%clk 0:00:25.7]} 39. Rh8 {[%clk 0:00:23.7]} 39... Rh2 {[%clk 0:00:20.9]} 40.
Kd5 {[%clk 0:00:22.2]} 40... Kg7 {[%clk 0:00:19.8]} 41. Ra8 {[%clk 0:00:21.5]}
41... Rxh5+ {[%clk 0:00:19.9]} 42. Kc6 {[%clk 0:00:21.8]} 42... Rh6+ {[%clk
0:00:20.1]} 43. Kb5 {[%clk 0:00:21.9]} 43... Re6 {[%clk 0:00:19.7]} 44. Rxa7
{[%clk 0:00:21.6]} 44... Kg6 {[%clk 0:00:20.2]} 45. Kc4 {[%clk 0:00:21.3]} 45...
f5 {[%clk 0:00:20.3]} 46. Kd5 {[%clk 0:00:21.3]} 46... Kf6 {[%clk 0:00:20.9]}
47. Rh7 {[%clk 0:00:20.6]} 47... Re1 {[%clk 0:00:18.4]} 48. Rh6+ {[%clk
0:00:20.5]} 48... Kg5 {[%clk 0:00:18.6]} 49. Rxb6 {[%clk 0:00:21.3]} 49... f4
{[%clk 0:00:18.8]} 50. Kxc5 {[%clk 0:00:19.9]} 50... f3 {[%clk 0:00:18.9]} 51.
Rb8 {[%clk 0:00:19.9]} 51... f2 {[%clk 0:00:18.1]} 52. Rg8+ {[%clk 0:00:19.6]}
52... Kh6 {[%clk 0:00:18.1]} 53. Rf8 {[%clk 0:00:18.4]} 53... f1=Q {[%clk
0:00:18.1]} 0-1

[Event "Late-Titled-Tuesday-Blitz-September-12-2023"]
[Site "Chess.com"]
[Date "2023.09.12"]
[Round "3"]
[White "seramoral"]
[Black "HanSchut"]
[Result "1-0"]
[WhiteElo "2620"]
[BlackElo "2285"]
[TimeControl "180+1"]
[EndTime "14:27:29 PDT"]
[Termination "seramoral won on time"]

1. Nf3 {[%clk 0:03:00.9]} 1... Nf6 {[%clk 0:02:59.3]} 2. b3 {[%clk 0:03:00.4]}
2... g6 {[%clk 0:02:59]} 3. Bb2 {[%clk 0:02:55.8]} 3... d5 {[%clk 0:02:58.8]} 4.
e3 {[%clk 0:02:52.7]} 4... Bg7 {[%clk 0:02:58]} 5. c4 {[%clk 0:02:52.2]} 5...
O-O {[%clk 0:02:58.2]} 6. Nc3 {[%clk 0:02:49.6]} 6... c6 {[%clk 0:02:55.9]} 7.
d4 {[%clk 0:02:49.3]} 7... Bf5 {[%clk 0:02:52.7]} 8. Be2 {[%clk 0:02:45]} 8...
Ne4 {[%clk 0:02:52.4]} 9. O-O {[%clk 0:02:39.1]} 9... Nxc3 {[%clk 0:02:51.5]}
10. Bxc3 {[%clk 0:02:39.1]} 10... Nd7 {[%clk 0:02:51.8]} 11. Qd2 {[%clk
0:02:28.7]} 11... Nf6 {[%clk 0:02:48.5]} 12. Bd3 {[%clk 0:02:27.2]} 12... Ne4
{[%clk 0:02:41]} 13. Qc2 {[%clk 0:02:23.7]} 13... Qd7 {[%clk 0:02:11.1]} 14. Bb2
{[%clk 0:02:20.8]} 14... Nd6 {[%clk 0:01:56.1]} 15. Bxf5 {[%clk 0:02:10.4]}
15... Qxf5 {[%clk 0:01:55.8]} 16. Qxf5 {[%clk 0:02:06.9]} 16... Nxf5 {[%clk
0:01:56.7]} 17. cxd5 {[%clk 0:02:07.3]} 17... cxd5 {[%clk 0:01:56.6]} 18. Rac1
{[%clk 0:02:02.6]} 18... Rfc8 {[%clk 0:01:56.5]} 19. h3 {[%clk 0:01:55.3]} 19...
e6 {[%clk 0:01:45.3]} 20. Ba3 {[%clk 0:01:52.6]} 20... Bf8 {[%clk 0:01:45.1]}
21. Bxf8 {[%clk 0:01:52.5]} 21... Kxf8 {[%clk 0:01:46]} 22. g4 {[%clk
0:01:48.7]} 22... Nd6 {[%clk 0:01:45.4]} 23. Ne5 {[%clk 0:01:48.4]} 23... Rxc1
{[%clk 0:01:43.1]} 24. Rxc1 {[%clk 0:01:47.6]} 24... Rc8 {[%clk 0:01:43.6]} 25.
Rxc8+ {[%clk 0:01:42.2]} 25... Nxc8 {[%clk 0:01:44.5]} 26. g5 {[%clk 0:01:38.7]}
26... Nd6 {[%clk 0:01:38.6]} 27. Kg2 {[%clk 0:01:33.6]} 27... Ne4 {[%clk
0:01:37.6]} 28. h4 {[%clk 0:01:32.3]} 28... Nc3 {[%clk 0:01:37.8]} 29. a4 {[%clk
0:01:28.3]} 29... Ne4 {[%clk 0:01:26.8]} 30. Ng4 {[%clk 0:01:25.6]} 30... Nd2
{[%clk 0:01:17]} 31. b4 {[%clk 0:01:19.7]} 31... Ne4 {[%clk 0:01:16.1]} 32. Kf3
{[%clk 0:01:08]} 32... Nc3 {[%clk 0:01:14.5]} 33. a5 {[%clk 0:01:05.4]} 33... a6
{[%clk 0:01:14.9]} 34. Nf6 {[%clk 0:00:58.1]} 34... Na2 {[%clk 0:01:11.7]} 35.
Nd7+ {[%clk 0:00:50.2]} 35... Ke7 {[%clk 0:01:09.5]} 36. Nc5 {[%clk 0:00:50.3]}
36... Nxb4 {[%clk 0:01:06.5]} 37. Nxb7 {[%clk 0:00:50.8]} 37... Nc6 {[%clk
0:01:02.6]} 38. Nc5 {[%clk 0:00:50.8]} 38... Nxa5 {[%clk 0:01:00.9]} 39. Nxa6
{[%clk 0:00:51.4]} 39... Nc4 {[%clk 0:00:57]} 40. Kg4 {[%clk 0:00:51.6]} 40...
Nd6 {[%clk 0:00:52.8]} 41. Nc5 {[%clk 0:00:48.9]} 41... Nf5 {[%clk 0:00:52.8]}
42. h5 {[%clk 0:00:46.4]} 42... Ng7 {[%clk 0:00:31.4]} 43. h6 {[%clk 0:00:41.4]}
43... Nh5 {[%clk 0:00:30.5]} 44. Nd3 {[%clk 0:00:39.1]} 44... f6 {[%clk
0:00:25.7]} 45. f4 {[%clk 0:00:39.1]} 45... Kf7 {[%clk 0:00:22.7]} 46. Ne1
{[%clk 0:00:35.5]} 46... Ke7 {[%clk 0:00:23.1]} 47. Nf3 {[%clk 0:00:35.5]} 47...
Kf7 {[%clk 0:00:23.1]} 48. gxf6 {[%clk 0:00:28.6]} 48... Nxf6+ {[%clk
0:00:12.3]} 49. Kh4 {[%clk 0:00:28.7]} 49... Ng8 {[%clk 0:00:09.6]} 50. Kg5
{[%clk 0:00:25.7]} 50... Nf6 {[%clk 0:00:10.1]} 51. Ne5+ {[%clk 0:00:22.3]}
51... Ke7 {[%clk 0:00:09.5]} 52. Nxg6+ {[%clk 0:00:20.7]} 52... hxg6 {[%clk
0:00:10.4]} 53. Kxg6 {[%clk 0:00:21.1]} 53... Ne4 {[%clk 0:00:06.8]} 54. h7
{[%clk 0:00:18.8]} 1-0

[Event "Late-Titled-Tuesday-Blitz-September-12-2023"]
[Site "Chess.com"]
[Date "2023.09.12"]
[Round "3"]
[White "biostatistician"]
[Black "FredddieCroderg"]
[Result "0-1"]
[WhiteElo "2555"]
[BlackElo "2337"]
[TimeControl "180+1"]
[EndTime "14:27:29 PDT"]
[Termination "FredddieCroderg won on time"]

1. d4 {[%clk 0:02:59.1]} 1... d6 {[%clk 0:02:59.7]} 2. Nf3 {[%clk 0:03:00]} 2...
Bg4 {[%clk 0:02:59.5]} 3. c4 {[%clk 0:03:00.9]} 3... Bxf3 {[%clk 0:02:58.8]} 4.
exf3 {[%clk 0:03:01.8]} 4... g6 {[%clk 0:02:59.6]} 5. f4 {[%clk 0:03:01.8]} 5...
Bg7 {[%clk 0:02:59.9]} 6. Nc3 {[%clk 0:03:02.4]} 6... e6 {[%clk 0:02:59.6]} 7.
Be3 {[%clk 0:03:00.2]} 7... c6 {[%clk 0:03:00]} 8. d5 {[%clk 0:02:56.9]} 8...
exd5 {[%clk 0:02:57.4]} 9. cxd5 {[%clk 0:02:57.8]} 9... Ne7 {[%clk 0:02:56.2]}
10. dxc6 {[%clk 0:02:40.5]} 10... bxc6 {[%clk 0:02:54.9]} 11. Bd3 {[%clk
0:02:38.8]} 11... d5 {[%clk 0:02:53.3]} 12. Bc5 {[%clk 0:02:24.5]} 12... Nd7
{[%clk 0:02:52.9]} 13. Bd6 {[%clk 0:02:07]} 13... Nf6 {[%clk 0:02:37.1]} 14. Be5
{[%clk 0:02:06.6]} 14... O-O {[%clk 0:02:37.1]} 15. O-O {[%clk 0:02:06.6]} 15...
c5 {[%clk 0:02:33.5]} 16. f5 {[%clk 0:02:01.3]} 16... Nc6 {[%clk 0:02:31.1]} 17.
Bg3 {[%clk 0:01:45.9]} 17... Qb6 {[%clk 0:02:01.8]} 18. fxg6 {[%clk 0:01:39]}
18... hxg6 {[%clk 0:02:01]} 19. Na4 {[%clk 0:01:39.2]} 19... Qa5 {[%clk
0:01:56.1]} 20. b3 {[%clk 0:01:36.8]} 20... Rfd8 {[%clk 0:01:50.9]} 21. Rc1
{[%clk 0:01:35.9]} 21... c4 {[%clk 0:01:47.8]} 22. Be2 {[%clk 0:01:33.4]} 22...
Ne4 {[%clk 0:01:43.4]} 23. Bf3 {[%clk 0:01:28.3]} 23... cxb3 {[%clk 0:01:20]}
24. axb3 {[%clk 0:01:23.6]} 24... Nd4 {[%clk 0:01:14.6]} 25. Bc7 {[%clk
0:01:09.2]} 25... Qb5 {[%clk 0:00:44.3]} 26. Bxd8 {[%clk 0:01:07.1]} 26... Rxd8
{[%clk 0:00:45.2]} 27. Rb1 {[%clk 0:00:18]} 27... Nxf3+ {[%clk 0:00:42.6]} 28.
Qxf3 {[%clk 0:00:16.9]} 28... Nd2 {[%clk 0:00:42.9]} 29. Qe3 {[%clk 0:00:12.3]}
29... Nxf1 {[%clk 0:00:38.3]} 30. Rxf1 {[%clk 0:00:13.2]} 30... d4 {[%clk
0:00:38.7]} 31. Qe7 {[%clk 0:00:09.7]} 31... Qd7 {[%clk 0:00:36.6]} 32. Qxd7
{[%clk 0:00:08.4]} 32... Rxd7 {[%clk 0:00:37.5]} 33. Rd1 {[%clk 0:00:08.9]}
33... Rb7 {[%clk 0:00:36.3]} 34. Rd3 {[%clk 0:00:05.8]} 34... Kf8 {[%clk
0:00:35.8]} 35. Kf1 {[%clk 0:00:06.3]} 35... Ke7 {[%clk 0:00:35.9]} 36. Ke2
{[%clk 0:00:07.2]} 36... Kd6 {[%clk 0:00:36.4]} 37. Kd2 {[%clk 0:00:07.6]} 37...
Kd5 {[%clk 0:00:35.8]} 38. Kc2 {[%clk 0:00:08]} 38... Re7 {[%clk 0:00:34.6]} 39.
Nb2 {[%clk 0:00:06.6]} 39... Re2+ {[%clk 0:00:34]} 40. Rd2 {[%clk 0:00:07.1]}
40... Re1 {[%clk 0:00:24]} 41. Nd3 {[%clk 0:00:06.3]} 41... Rh1 {[%clk
0:00:22.9]} 42. h3 {[%clk 0:00:05.5]} 42... Rg1 {[%clk 0:00:23.1]} 43. Nf4+
{[%clk 0:00:05.7]} 43... Ke4 {[%clk 0:00:21.8]} 44. g3 {[%clk 0:00:06]} 44...
Rf1 {[%clk 0:00:20.4]} 45. Nd3 {[%clk 0:00:03.9]} 45... Ra1 {[%clk 0:00:18.8]}
46. Re2+ {[%clk 0:00:02.9]} 46... Kd5 {[%clk 0:00:17]} 47. Re7 {[%clk 0:00:03]}
47... Ra2+ {[%clk 0:00:13.8]} 48. Kb1 {[%clk 0:00:02.3]} 48... Rd2 {[%clk
0:00:13.8]} 0-1

[Event "Late-Titled-Tuesday-Blitz-September-12-2023"]
[Site "Chess.com"]
[Date "2023.09.12"]
[Round "3"]
[White "GianmarcoVaR"]
[Black "kaanadayhamle"]
[Result "1-0"]
[WhiteElo "2656"]
[BlackElo "2416"]
[TimeControl "180+1"]
[EndTime "14:27:30 PDT"]
[Termination "GianmarcoVaR won by resignation"]

1. e4 {[%clk 0:03:00.9]} 1... c6 {[%clk 0:02:59.7]} 2. d4 {[%clk 0:02:59]} 2...
d5 {[%clk 0:03:00.6]} 3. exd5 {[%clk 0:02:55.8]} 3... cxd5 {[%clk 0:03:01.5]} 4.
Bd3 {[%clk 0:02:54.1]} 4... Nf6 {[%clk 0:03:01.7]} 5. c3 {[%clk 0:02:44.1]} 5...
Nc6 {[%clk 0:03:01.6]} 6. h3 {[%clk 0:02:41.9]} 6... g6 {[%clk 0:03:01.3]} 7.
Nf3 {[%clk 0:02:41.2]} 7... Bg7 {[%clk 0:03:01.4]} 8. Nbd2 {[%clk 0:02:41.5]}
8... O-O {[%clk 0:03:01.4]} 9. O-O {[%clk 0:02:39]} 9... Bf5 {[%clk 0:03:01.4]}
10. Ne5 {[%clk 0:02:32.3]} 10... Nxe5 {[%clk 0:02:37.8]} 11. Bxf5 {[%clk
0:02:32]} 11... gxf5 {[%clk 0:02:37.7]} 12. dxe5 {[%clk 0:02:32.7]} 12... Ne4
{[%clk 0:02:38.4]} 13. Nf3 {[%clk 0:02:31.7]} 13... e6 {[%clk 0:02:37.3]} 14.
Bf4 {[%clk 0:02:30.8]} 14... Qb6 {[%clk 0:02:36.4]} 15. Qe2 {[%clk 0:02:31]}
15... Rac8 {[%clk 0:02:31.7]} 16. Nd4 {[%clk 0:02:28.4]} 16... Kh8 {[%clk
0:01:54.8]} 17. Kh1 {[%clk 0:02:00.1]} 17... Qa6 {[%clk 0:01:30.9]} 18. Qd1
{[%clk 0:01:32]} 18... Qb6 {[%clk 0:01:28.1]} 19. Rb1 {[%clk 0:01:27]} 19... Qa5
{[%clk 0:01:24.2]} 20. f3 {[%clk 0:01:19.6]} 20... Nc5 {[%clk 0:00:50.4]} 21. b4
{[%clk 0:01:17.9]} 21... Qxa2 {[%clk 0:00:50]} 22. bxc5 {[%clk 0:00:37.6]} 22...
Rxc5 {[%clk 0:00:49.8]} 23. Qd3 {[%clk 0:00:23.5]} 23... Rfc8 {[%clk 0:00:20.5]}
24. Ne2 {[%clk 0:00:20.4]} 24... b6 {[%clk 0:00:17.7]} 25. Ra1 {[%clk
0:00:19.3]} 25... Qc4 {[%clk 0:00:16]} 26. Qxc4 {[%clk 0:00:19.9]} 26... Rxc4
{[%clk 0:00:16.9]} 27. Rxa7 {[%clk 0:00:19.6]} 27... b5 {[%clk 0:00:16]} 28. Rb1
{[%clk 0:00:17.7]} 28... Rb8 {[%clk 0:00:15.9]} 29. Rxf7 {[%clk 0:00:17.3]}
29... Kg8 {[%clk 0:00:15.3]} 30. Re7 {[%clk 0:00:15.6]} 30... Rc6 {[%clk
0:00:14.4]} 31. Rb3 {[%clk 0:00:13]} 31... Bf8 {[%clk 0:00:14.3]} 32. Rd7 {[%clk
0:00:12.4]} 32... Rc4 {[%clk 0:00:14.6]} 33. Nd4 {[%clk 0:00:11.7]} 33... b4
{[%clk 0:00:15.1]} 34. Nxe6 {[%clk 0:00:11]} 34... Rxc3 {[%clk 0:00:14.3]} 35.
Rxc3 {[%clk 0:00:11.3]} 35... bxc3 {[%clk 0:00:15.2]} 36. Rxd5 {[%clk
0:00:09.7]} 36... c2 {[%clk 0:00:15.5]} 37. Kh2 {[%clk 0:00:09.3]} 37... Rb1
{[%clk 0:00:15.3]} 38. Rd8 {[%clk 0:00:07]} 38... Kf7 {[%clk 0:00:15.6]} 39.
Nxf8 {[%clk 0:00:07.4]} 39... c1=Q {[%clk 0:00:15]} 40. Bxc1 {[%clk 0:00:06.7]}
40... Rxc1 {[%clk 0:00:15.9]} 41. Nxh7 {[%clk 0:00:06.3]} 41... Re1 {[%clk
0:00:15]} 42. Ng5+ {[%clk 0:00:06]} 42... Kg6 {[%clk 0:00:14.9]} 43. f4 {[%clk
0:00:05.9]} 43... Rf1 {[%clk 0:00:15.6]} 44. Rg8+ {[%clk 0:00:06.1]} 44... Kh6
{[%clk 0:00:15.1]} 45. Kg3 {[%clk 0:00:05.3]} 45... Re1 {[%clk 0:00:14.8]} 46.
Nf3 {[%clk 0:00:05.4]} 46... Re4 {[%clk 0:00:14.5]} 47. Rh8+ {[%clk 0:00:04.8]}
47... Kg7 {[%clk 0:00:14.3]} 48. Rh5 {[%clk 0:00:05.4]} 48... Kg6 {[%clk
0:00:15.2]} 49. Rg5+ {[%clk 0:00:06]} 49... Kf7 {[%clk 0:00:15.7]} 50. Rxf5+
{[%clk 0:00:06.3]} 50... Ke6 {[%clk 0:00:16.6]} 51. Rf6+ {[%clk 0:00:06.9]}
51... Ke7 {[%clk 0:00:16.9]} 52. Rh6 {[%clk 0:00:06.9]} 52... Re3 {[%clk
0:00:16.9]} 53. f5 {[%clk 0:00:07]} 53... Kf7 {[%clk 0:00:17.3]} 54. Rh7+ {[%clk
0:00:07.3]} 54... Kg8 {[%clk 0:00:17.8]} 55. Ra7 {[%clk 0:00:08.2]} 1-0

[Event "Late-Titled-Tuesday-Blitz-September-12-2023"]
[Site "Chess.com"]
[Date "2023.09.12"]
[Round "3"]
[White "NotFischer"]
[Black "dennisodessa"]
[Result "0-1"]
[WhiteElo "2292"]
[BlackElo "2530"]
[TimeControl "180+1"]
[EndTime "14:27:34 PDT"]
[Termination "dennisodessa won by checkmate"]

1. e4 {[%clk 0:03:00.9]} 1... e6 {[%clk 0:02:59.9]} 2. d4 {[%clk 0:03:00.4]}
2... d5 {[%clk 0:03:00.5]} 3. e5 {[%clk 0:03:01]} 3... c5 {[%clk 0:03:00.2]} 4.
c3 {[%clk 0:03:01.2]} 4... Qa5 {[%clk 0:03:00.9]} 5. Nd2 {[%clk 0:02:30.5]} 5...
cxd4 {[%clk 0:02:58.8]} 6. cxd4 {[%clk 0:02:29.8]} 6... Nc6 {[%clk 0:02:58.1]}
7. Nf3 {[%clk 0:02:28.2]} 7... Qb6 {[%clk 0:02:56.6]} 8. Nb3 {[%clk 0:02:21.3]}
8... a5 {[%clk 0:02:55.3]} 9. a4 {[%clk 0:02:19.6]} 9... Bb4+ {[%clk 0:02:54.3]}
10. Bd2 {[%clk 0:01:58.7]} 10... Bxd2+ {[%clk 0:02:52.8]} 11. Kxd2 {[%clk
0:01:46.5]} 11... Nh6 {[%clk 0:02:48.3]} 12. Bb5 {[%clk 0:01:43.7]} 12... O-O
{[%clk 0:02:42.2]} 13. Rc1 {[%clk 0:01:33.8]} 13... Nf5 {[%clk 0:02:32.4]} 14.
Ke2 {[%clk 0:01:28]} 14... Bd7 {[%clk 0:02:26.6]} 15. g4 {[%clk 0:01:27.6]}
15... Nfe7 {[%clk 0:02:25.6]} 16. Nc5 {[%clk 0:01:19.5]} 16... Rad8 {[%clk
0:02:19]} 17. Nxd7 {[%clk 0:01:13.2]} 17... Rxd7 {[%clk 0:02:19.9]} 18. Qd3
{[%clk 0:01:06.1]} 18... f6 {[%clk 0:02:07.6]} 19. exf6 {[%clk 0:00:41.2]} 19...
Rxf6 {[%clk 0:02:00]} 20. Qe3 {[%clk 0:00:31.5]} 20... Rd8 {[%clk 0:01:40.2]}
21. g5 {[%clk 0:00:31.5]} 21... Nf5 {[%clk 0:01:39.8]} 22. Rxc6 {[%clk
0:00:20.6]} 22... bxc6 {[%clk 0:01:36.1]} 23. Qc3 {[%clk 0:00:20.3]} 23... Rf7
{[%clk 0:01:20]} 24. Qxc6 {[%clk 0:00:20.2]} 24... Nxd4+ {[%clk 0:01:16.6]} 25.
Nxd4 {[%clk 0:00:16.8]} 25... Qxd4 {[%clk 0:01:17.5]} 26. Rf1 {[%clk 0:00:07.3]}
26... Qe4+ {[%clk 0:01:17.4]} 27. Kd1 {[%clk 0:00:05.6]} 27... Rdf8 {[%clk
0:01:18.3]} 28. Be2 {[%clk 0:00:03.8]} 28... Rxf2 {[%clk 0:01:14.6]} 29. Rxf2
{[%clk 0:00:04.7]} 29... Rxf2 {[%clk 0:01:14.4]} 30. Qc8+ {[%clk 0:00:05]} 30...
Rf8 {[%clk 0:01:14.1]} 31. Qd7 {[%clk 0:00:05.2]} 31... Rb8 {[%clk 0:00:49.3]}
32. b4 {[%clk 0:00:03.7]} 32... axb4 {[%clk 0:00:48.6]} 33. Bb5 {[%clk 0:00:03]}
33... b3 {[%clk 0:00:45.6]} 34. Qc7 {[%clk 0:00:03.5]} 34... Rf8 {[%clk
0:00:41.6]} 35. Qc3 {[%clk 0:00:03.7]} 35... Qf3+ {[%clk 0:00:35.6]} 36. Qxf3
{[%clk 0:00:02.8]} 36... Rxf3 {[%clk 0:00:36.5]} 37. Kc1 {[%clk 0:00:03.3]}
37... Rf2 {[%clk 0:00:33.4]} 38. a5 {[%clk 0:00:03.9]} 38... Ra2 {[%clk
0:00:33.9]} 39. a6 {[%clk 0:00:04.1]} 39... Kf7 {[%clk 0:00:32.1]} 40. Kb1
{[%clk 0:00:05]} 40... e5 {[%clk 0:00:29.6]} 41. h4 {[%clk 0:00:05.1]} 41... e4
{[%clk 0:00:27.7]} 42. Bc6 {[%clk 0:00:05.6]} 42... Rxa6 {[%clk 0:00:22.4]} 43.
Bxd5+ {[%clk 0:00:05.7]} 43... Ke7 {[%clk 0:00:22.1]} 44. Bxe4 {[%clk
0:00:06.6]} 44... h6 {[%clk 0:00:22.4]} 45. gxh6 {[%clk 0:00:06.5]} 45... Rxh6
{[%clk 0:00:22.9]} 46. Kb2 {[%clk 0:00:07.2]} 46... Rxh4 {[%clk 0:00:23.4]} 47.
Bd3 {[%clk 0:00:07.5]} 47... Rh3 {[%clk 0:00:23.1]} 48. Bc4 {[%clk 0:00:07.5]}
48... Kf6 {[%clk 0:00:22]} 49. Bxb3 {[%clk 0:00:07.6]} 49... Rxb3+ {[%clk
0:00:21.2]} 50. Kxb3 {[%clk 0:00:08.4]} 50... Ke5 {[%clk 0:00:21.5]} 51. Kc3
{[%clk 0:00:09.3]} 51... Kf4 {[%clk 0:00:22]} 52. Kd2 {[%clk 0:00:10.2]} 52...
Kf3 {[%clk 0:00:22.1]} 53. Ke1 {[%clk 0:00:11.1]} 53... g5 {[%clk 0:00:20.5]}
54. Kf1 {[%clk 0:00:12]} 54... g4 {[%clk 0:00:20.3]} 55. Kg1 {[%clk 0:00:12.6]}
55... Kg3 {[%clk 0:00:20.7]} 56. Kh1 {[%clk 0:00:12]} 56... Kf2 {[%clk
0:00:21.6]} 57. Kh2 {[%clk 0:00:12.3]} 57... g3+ {[%clk 0:00:22]} 58. Kh3 {[%clk
0:00:13.2]} 58... g2 {[%clk 0:00:22.6]} 59. Kh4 {[%clk 0:00:14.1]} 59... g1=Q
{[%clk 0:00:23.5]} 60. Kh3 {[%clk 0:00:15]} 60... Qg3# {[%clk 0:00:22.2]} 0-1